bitfinex/quotes_SOLUSD_20220208
["timestamp","ask_amount","ask_price","bid_price","bid_amount"]
[1644359275913,21.81097665,112.77,112.71,56.15546659]
[1644359276513,13.3075,112.77,112.71,56.40546659]
[1644359281013,13.3075,112.77,112.71,56.15546659]
[1644359281813,13.3075,112.77,112.71,19.3064]
[1644359282213,13.3075,112.77,112.71,19.5564]
[1644359284716,13.5575,112.77,112.71,19.5564]
[1644359285314,13.3075,112.77,112.71,19.5564]
[1644359286618,13.5575,112.77,112.71,19.5564]
[1644359290123,15.71880645,112.8,112.68,54.605529]
[1644359290327,15.71880645,112.8,112.68,45.86400935]
[1644359290523,23.82656194,112.8,112.68,45.86400935]
[1644359290725,13.3075,112.77,112.71,13.3064]
[1644359293724,13.5575,112.77,112.71,13.3064]
[1644359295725,13.5575,112.77,112.71,13.5564]
[1644359295926,13.5575,112.77,112.71,13.3064]
[1644359297327,13.5575,112.77,112.71,13.5564]
[1644359297933,13.5575,112.77,112.71,13.3064]
[1644359300432,13.5575,112.77,112.68,1.25930935]
[1644359300636,45.78376654,112.77,112.67,1.25930935]
[1644359301234,47.89152203,112.77,112.67,1.25930935]
[1644359301635,47.89152203,112.77,112.67,1.50930935]
[1644359302736,47.89152203,112.77,112.68,13.3104]
[1644359303239,47.89152203,112.77,112.68,13.5604]
[1644359305942,47.89152203,112.77,112.68,0.25]
[1644359306439,47.89152203,112.77,112.67,0.024]
[1644359307941,47.64152203,112.77,112.67,0.024]
[1644359311343,24.6444,112.76,112.67,0.024]
[1644359311543,13.312,112.74,112.67,0.024]
[1644359311746,13.312,112.74,112.66,14.82100935]
[1644359312144,19.312,112.74,112.66,14.82100935]
[1644359312344,41.9569,112.74,112.66,14.82100935]
[1644359312944,41.9569,112.74,112.66,13.5617]
[1644359315271,42.2069,112.74,112.66,13.5617]
[1644359315470,42.2069,112.74,112.66,13.3117]
[1644359316575,55.6469,112.74,112.66,13.3117]
[1644359316773,55.6469,112.74,112.66,13.5617]
[1644359328383,55.6469,112.74,112.66,14.82100935]
[1644359328982,55.6469,112.74,112.66,13.5617]
[1644359329284,55.6469,112.74,112.66,14.82100935]
[1644359330687,55.6469,112.74,112.66,14.57100935]
[1644359331486,42.2069,112.74,112.66,14.57100935]
[1644359332283,42.2069,112.74,112.66,14.82100935]
[1644359336589,36.2069,112.74,112.66,14.82100935]
[1644359337589,42.2069,112.74,112.66,14.82100935]
[1644359339195,36.2069,112.74,112.66,14.82100935]
[1644359341096,42.2069,112.74,112.66,14.82100935]
[1644359343495,36.2069,112.74,112.66,14.82100935]
[1644359343694,36.2069,112.74,112.66,20.82100935]
[1644359344096,36.2069,112.74,112.66,14.82100935]
[1644359344597,36.2069,112.74,112.66,20.82100935]
[1644359344998,36.2069,112.74,112.66,14.82100935]
[1644359345196,36.2069,112.74,112.66,14.57100935]
[1644359345597,36.2069,112.74,112.66,20.57100935]
[1644359346397,36.2069,112.74,112.66,14.57100935]
[1644359346599,36.2069,112.74,112.66,20.57100935]
[1644359346797,36.2069,112.74,112.66,20.82100935]
[1644359348599,36.2069,112.74,112.66,14.82100935]
[1644359348998,36.2069,112.74,112.66,20.82100935]
[1644359349399,36.2069,112.74,112.66,14.82100935]
[1644359349599,36.2069,112.74,112.66,20.57100935]
[1644359351102,36.2069,112.74,112.66,20.82100935]
[1644359352102,36.2069,112.74,112.66,14.82100935]
[1644359352703,36.2069,112.74,112.66,20.82100935]
[1644359352905,36.2069,112.74,112.66,45.13080935]
[1644359355204,36.2069,112.74,112.66,44.88080935]
[1644359355603,36.2069,112.74,112.66,38.88080935]
[1644359356002,36.2069,112.74,112.66,44.88080935]
[1644359356603,35.9569,112.74,112.66,45.13080935]
[1644359360212,36.2069,112.74,112.66,45.13080935]
[1644359365125,36.2069,112.74,112.66,44.88080935]
[1644359365322,36.2069,112.74,112.66,37.6215]
[1644359366622,36.2069,112.74,112.66,37.8715]
[1644359367824,36.2069,112.74,112.66,37.8955]
[1644359368124,36.2069,112.74,112.66,39.15480935]
[1644359368324,36.2069,112.74,112.66,37.8955]
[1644359368524,36.2069,112.74,112.66,39.15480935]
[1644359370229,13.312,112.74,112.66,39.15480935]
[1644359370428,13.3086,112.75,112.66,39.15480935]
[1644359370626,19.3086,112.75,112.67,1.28330935]
[1644359370827,19.3086,112.75,112.69,13.3086]
[1644359371030,13.3086,112.75,112.69,13.3086]
[1644359371326,13.3086,112.75,112.69,13.5586]
[1644359373730,13.5586,112.75,112.69,13.5586]
[1644359375234,0.25,112.75,112.69,13.5586]
[1644359375731,44.06416654,112.76,112.69,13.5586]
[1644359377130,38.06416654,112.76,112.69,13.5586]
[1644359377531,44.06416654,112.76,112.69,13.5586]
[1644359377833,38.06416654,112.76,112.69,13.5586]
[1644359378031,36.8172,112.76,112.69,13.5586]
[1644359378931,42.8172,112.76,112.69,13.5586]
[1644359379131,36.8172,112.76,112.69,13.5586]
[1644359379932,42.8172,112.76,112.69,13.5586]
[1644359380132,36.8172,112.76,112.69,13.5586]
[1644359380337,36.5672,112.76,112.69,13.5586]
[1644359380934,42.5672,112.76,112.69,13.5586]
[1644359381135,36.5672,112.76,112.69,13.5586]
[1644359381535,42.5672,112.76,112.69,13.5586]
[1644359381735,36.5672,112.76,112.69,13.5586]
[1644359382037,23.2596,112.76,112.69,13.5586]
[1644359383040,23.2596,112.76,112.69,19.5586]
[1644359386147,23.2596,112.76,112.69,14.93482286]
[1644359386343,23.2596,112.76,112.69,20.93482286]
[1644359386546,0.03076344,112.78,112.69,20.93482286]
[1644359386747,0.03076344,112.78,112.72,13.3031]
[1644359386946,13.3041,112.79,112.72,38.1275]
[1644359387147,13.33486344,112.79,112.72,38.3775]
[1644359387344,13.3041,112.79,112.72,38.3775]
[1644359389948,13.3041,112.79,112.72,44.3775]
[1644359390368,13.3041,112.79,112.72,38.1275]
[1644359391369,13.33376344,112.8,112.72,38.1275]
[1644359391570,13.33376344,112.8,112.72,44.1275]
[1644359391770,36.58406344,112.8,112.72,44.3775]
[1644359392272,36.83406344,112.8,112.72,38.3775]
[1644359392471,36.83406344,112.8,112.72,44.3775]
[1644359393571,36.83406344,112.8,112.72,38.3775]
[1644359394175,36.83406344,112.8,112.72,44.3775]
[1644359394575,36.83406344,112.8,112.72,38.3775]
[1644359395574,42.83406344,112.8,112.72,44.3775]
[1644359395777,36.83406344,112.8,112.72,38.3775]
[1644359396676,42.83406344,112.8,112.72,38.3775]
[1644359396875,36.83406344,112.8,112.72,38.3775]
[1644359397679,36.83406344,112.8,112.72,44.3775]
[1644359400184,36.83406344,112.8,112.72,44.1275]
[1644359400384,38.08102998,112.8,112.72,44.1275]
[1644359400584,38.05026654,112.8,112.72,38.1275]
[1644359404090,44.05026654,112.8,112.72,38.1275]
[1644359410229,1.24696654,112.79,112.72,38.1275]
[1644359414227,1.49696654,112.79,112.72,38.1275]
[1644359418635,1.49696654,112.79,112.72,44.1275]
[1644359418833,1.49696654,112.79,112.72,38.1275]
[1644359431143,1.24696654,112.78,112.72,38.1275]
[1644359431346,1.27772998,112.79,112.72,38.1275]
[1644359431542,1.24696654,112.79,112.72,38.1275]
[1644359432044,1.49696654,112.79,112.72,38.1275]
[1644359437454,1.24696654,112.78,112.72,38.1275]
[1644359438353,1.27772998,112.79,112.72,38.1275]
[1644359438553,1.24696654,112.79,112.72,38.1275]
[1644359440056,7.24696654,112.79,112.72,38.1275]
[1644359440256,1.49696654,112.79,112.72,38.1275]
[1644359440456,7.49696654,112.79,112.72,38.1275]
[1644359440655,24.5806,112.78,112.72,38.1275]
[1644359440855,24.5806,112.78,112.72,38.3775]
[1644359441958,24.8306,112.78,112.72,38.3775]
[1644359444160,24.8306,112.78,112.72,38.1275]
[1644359445765,24.8306,112.78,112.72,38.3775]
[1644359446763,24.8306,112.78,112.72,38.1275]
[1644359448162,24.8306,112.78,112.72,38.3775]
[1644359457596,24.8306,112.78,112.72,44.3775]
[1644359457799,24.8306,112.78,112.72,38.1275]
[1644359460701,1.27772998,112.79,112.72,38.3775]
[1644359460901,1.24696654,112.79,112.72,38.3775]
[1644359461300,7.24696654,112.79,112.72,38.3775]
[1644359461801,6.0,112.79,112.72,38.3775]
[1644359462199,20.55036654,112.8,112.72,38.3775]
[1644359462401,1.24696654,112.8,112.72,38.3775]
[1644359462599,1.27772998,112.8,112.72,38.3775]
[1644359463200,0.03076344,112.8,112.72,44.3775]
[1644359463499,1.24696654,112.8,112.72,44.3775]
[1644359463699,1.27772998,112.8,112.72,38.3775]
[1644359466806,0.03076344,112.8,112.72,38.3775]
[1644359467007,1.24696654,112.8,112.72,38.3775]
[1644359467206,1.27772998,112.8,112.72,38.3775]
[1644359468216,1.52772998,112.8,112.72,38.3775]
[1644359468709,1.27772998,112.8,112.72,38.3775]
[1644359472210,24.06102998,112.8,112.72,38.3775]
[1644359475219,24.06102998,112.8,112.72,13.5531]
[1644359475417,43.36402998,112.8,112.72,13.5531]
[1644359475820,43.33326654,112.8,112.72,13.5531]
[1644359479543,43.36402998,112.8,112.72,13.5531]
[1644359479947,43.36402998,112.8,112.72,13.3031]
[1644359480142,43.36402998,112.8,112.72,19.3031]
[1644359480343,43.36402998,112.8,112.72,13.3031]
[1644359481246,43.36402998,112.8,112.72,13.5531]
[1644359481444,56.85272998,112.8,112.72,13.5531]
[1644359488551,1.24696654,112.79,112.72,13.5531]
[1644359488751,13.3054,112.78,112.72,13.5531]
[1644359489150,19.3054,112.78,112.72,13.5531]
[1644359489550,23.4522,112.77,112.72,13.5531]
[1644359490152,36.7584,112.77,112.72,13.5531]
[1644359491556,57.87336344,112.8,112.75,13.3004]
[1644359491557,0.03076344,112.8,112.75,13.3004]
[1644359491754,1.27772998,112.83,112.75,13.5504]
[1644359491956,1.24685617,112.84,112.76,1.37812473]
[1644359492153,24.9146,112.85,112.76,1.37812473]
[1644359492154,0.03076344,112.83,112.76,7.37812473]
[1644359492353,0.03076344,112.84,112.76,30.92972473]
[1644359492653,24.94536344,112.85,112.78,13.2962]
[1644359492856,13.32676344,112.86,112.78,13.2962]
[1644359493052,13.32676344,112.86,112.78,13.5462]
[1644359495054,19.32676344,112.86,112.78,13.5462]
[1644359495259,42.49506344,112.86,112.78,13.5462]
[1644359496354,42.74506344,112.86,112.78,13.5462]
[1644359497754,36.74506344,112.86,112.78,13.5462]
[1644359501864,23.44906344,112.86,112.78,13.5462]
[1644359502862,23.44906344,112.86,112.78,36.7854]
[1644359503562,23.44906344,112.86,112.78,42.7854]
[1644359503765,23.44906344,112.86,112.78,36.7854]
[1644359503962,36.74516344,112.86,112.78,36.7854]
[1644359504161,42.74516344,112.86,112.78,36.7854]
[1644359504364,36.74516344,112.86,112.78,36.7854]
[1644359508165,23.44906344,112.86,112.78,36.7854]
[1644359509969,36.74536344,112.86,112.78,36.7854]
[1644359510370,36.74536344,112.86,112.78,13.5462]
[1644359511570,36.74536344,112.86,112.78,36.9225]
[1644359515080,42.74536344,112.86,112.78,36.9225]
[1644359515475,23.44906344,112.86,112.78,36.9225]
[1644359518201,36.74506344,112.86,112.78,36.9225]
[1644359520601,36.74506344,112.86,112.78,42.9225]
[1644359520802,36.74506344,112.86,112.78,42.6725]
[1644359522201,36.74506344,112.86,112.78,42.9225]
[1644359523105,42.74506344,112.86,112.78,42.9225]
[1644359523303,42.74506344,112.86,112.78,36.9225]
[1644359523501,36.49506344,112.86,112.78,36.9225]
[1644359524405,36.49506344,112.86,112.78,36.6725]
[1644359525807,36.49506344,112.86,112.78,36.9225]
[1644359527208,36.74506344,112.86,112.78,36.9225]
[1644359527408,36.49506344,112.86,112.78,36.9225]
[1644359528809,55.82246344,112.86,112.78,36.9225]
[1644359529309,49.82246344,112.86,112.78,36.9225]
[1644359530509,49.57246344,112.86,112.78,36.9225]
[1644359532210,55.57246344,112.86,112.78,36.9225]
[1644359541220,55.82246344,112.86,112.78,36.9225]
[1644359542321,55.82246344,112.86,112.78,36.6725]
[1644359542521,67.45646344,112.86,112.78,36.6725]
[1644359542922,67.45646344,112.86,112.78,13.2962]
[1644359543823,67.45646344,112.86,112.77,13.2998]
[1644359544224,67.45646344,112.86,112.77,13.5498]
[1644359547429,55.82246344,112.86,112.77,13.5498]
[1644359548329,60.44553752,112.86,112.77,13.5498]
[1644359548828,55.82246344,112.86,112.77,13.5498]
[1644359557334,55.82246344,112.86,112.77,0.25]
[1644359557839,55.82246344,112.86,112.76,13.5507]
[1644359559363,49.82246344,112.86,112.76,13.5507]
[1644359560662,55.82246344,112.86,112.76,13.5507]
[1644359564769,55.82246344,112.86,112.77,24.2782]
[1644359565171,55.82246344,112.86,112.77,24.5282]
[1644359567772,55.82246344,112.86,112.77,0.25]
[1644359567973,55.82246344,112.86,112.76,13.5507]
[1644359570878,58.33192704,112.86,112.76,13.5507]
[1644359572082,55.82246344,112.86,112.77,36.9862]
[1644359572280,55.82246344,112.86,112.77,37.2362]
[1644359573682,55.82246344,112.86,112.77,0.25]
[1644359573884,12.71,112.85,112.77,0.25]
[1644359574085,18.71,112.85,112.74,0.25]
[1644359574284,13.3017,112.82,112.75,0.024]
[1644359574685,19.3017,112.82,112.75,0.024]
[1644359574884,13.3017,112.82,112.75,0.024]
[1644359575086,19.3017,112.82,112.75,0.024]
[1644359575787,19.3017,112.82,112.75,13.326]
[1644359576186,19.3017,112.82,112.75,13.576]
[1644359578386,13.3017,112.82,112.75,13.576]
[1644359579086,19.3017,112.82,112.75,13.576]
[1644359579287,13.3017,112.82,112.75,13.576]
[1644359579488,19.3017,112.82,112.75,13.576]
[1644359579687,13.3017,112.82,112.75,13.576]
[1644359580587,19.3017,112.82,112.75,19.576]
[1644359581089,13.3017,112.82,112.75,19.576]
[1644359581489,13.3017,112.82,112.75,13.576]
[1644359581688,13.3017,112.82,112.75,19.576]
[1644359582088,13.3017,112.82,112.75,13.576]
[1644359582694,19.3017,112.82,112.75,13.576]
[1644359583095,13.3017,112.82,112.75,13.576]
[1644359586591,19.3017,112.82,112.75,13.576]
[1644359588896,13.3017,112.82,112.75,13.576]
[1644359590599,19.3017,112.82,112.75,13.576]
[1644359592100,13.3017,112.82,112.75,13.576]
[1644359593603,13.3017,112.82,112.75,19.576]
[1644359594301,13.3017,112.82,112.75,13.576]
[1644359594698,13.3017,112.82,112.75,19.576]
[1644359595101,13.3017,112.82,112.75,42.8895]
[1644359596501,19.3017,112.82,112.75,36.8895]
[1644359596701,19.3017,112.82,112.75,0.024]
[1644359596904,19.3017,112.82,112.73,0.024]
[1644359597104,19.3017,112.82,112.74,0.024]
[1644359597502,12.71,112.81,112.74,0.024]
[1644359597702,13.3057,112.79,112.74,0.024]
[1644359597903,24.9357,112.78,112.72,43.5429]
[1644359598301,24.9357,112.78,112.72,43.7929]
[1644359599607,24.9357,112.78,112.72,37.7929]
[1644359599808,13.3057,112.77,112.72,37.7929]
[1644359600229,13.3057,112.77,112.72,37.5429]
[1644359601612,13.3057,112.77,112.72,37.7929]
[1644359602313,13.3039,112.79,112.72,37.7929]
[1644359602514,6.0,112.81,112.73,0.024]
[1644359602713,50.3449,112.82,112.75,13.3018]
[1644359603114,50.3449,112.82,112.75,13.5758]
[1644359603714,13.3024,112.8,112.75,13.5758]
[1644359603918,13.3024,112.8,112.75,13.5518]
[1644359612241,13.301,112.81,112.75,13.5518]
[1644359612439,13.301,112.81,112.75,13.5758]
[1644359612640,13.301,112.81,112.75,13.5518]
[1644359616542,19.301,112.81,112.75,13.5518]
[1644359616840,13.301,112.81,112.75,13.5518]
[1644359617442,19.301,112.81,112.75,13.5518]
[1644359617641,13.301,112.81,112.75,13.5518]
[1644359618048,19.301,112.81,112.75,13.5518]
[1644359618246,13.301,112.81,112.75,13.5518]
[1644359619147,19.301,112.81,112.75,13.5518]
[1644359619546,13.301,112.81,112.75,13.5518]
[1644359620548,19.301,112.81,112.75,13.5518]
[1644359621553,13.301,112.81,112.75,13.5518]
[1644359624256,13.301,112.81,112.75,13.3018]
[1644359624455,13.301,112.81,112.74,0.024]
[1644359624456,19.301,112.81,112.74,0.024]
[1644359625357,24.1171,112.8,112.74,0.024]
[1644359625560,13.3056,112.79,112.72,13.3293]
[1644359625757,13.3056,112.79,112.72,13.5793]
[1644359626057,19.3056,112.79,112.72,13.5793]
[1644359626260,19.3056,112.79,112.72,0.274]
[1644359626481,23.5862,112.78,112.72,0.274]
[1644359626663,13.3074,112.77,112.72,0.024]
[1644359626861,22.5453,112.76,112.7,44.3764]
[1644359627159,22.5453,112.76,112.7,44.3524]
[1644359627362,22.5453,112.76,112.7,44.1024]
[1644359627961,41.8527,112.76,112.7,6.0]
[1644359628160,41.8527,112.76,112.69,19.333]
[1644359628161,42.1027,112.76,112.69,19.333]
[1644359629261,42.1027,112.76,112.69,19.583]
[1644359629463,42.1027,112.76,112.69,13.583]
[1644359629664,42.1027,112.76,112.69,19.583]
[1644359630264,42.1027,112.76,112.69,13.583]
[1644359631165,42.1027,112.76,112.69,0.274]
[1644359631466,42.1027,112.76,112.69,0.024]
[1644359632264,36.1027,112.76,112.69,0.024]
[1644359632469,49.3881,112.76,112.69,0.024]
[1644359633668,55.3881,112.76,112.69,0.024]
[1644359635173,49.3881,112.76,112.69,13.3329]
[1644359635669,49.3881,112.76,112.69,13.5829]
[1644359638976,49.3881,112.76,112.69,0.024]
[1644359639178,55.3881,112.76,112.69,0.024]
[1644359639975,79.1792,112.76,112.66,0.024]
[1644359640378,53.01,112.75,112.64,1.26210175]
[1644359640583,13.319,112.71,112.61,2.65088262]
[1644359640779,13.319,112.71,112.58,1.26210175]
[1644359640977,89.0421,112.71,112.58,1.26210175]
[1644359641180,2.10775549,112.7,112.58,1.26210175]
[1644359641599,8.10775549,112.7,112.58,1.26210175]
[1644359641898,6.0,112.7,112.58,1.26210175]
[1644359642101,76.9796216,112.71,112.57,28.84231894]
[1644359642699,13.3205,112.67,112.57,28.84231894]
[1644359642901,36.9828,112.67,112.57,28.84231894]
[1644359643101,42.9828,112.67,112.57,28.84231894]
[1644359643599,42.9828,112.67,112.57,34.84231894]
[1644359643800,66.9665,112.67,112.57,27.58021719]
[1644359644099,66.9665,112.67,112.57,13.3201]
[1644359644301,67.2165,112.67,112.57,13.5701]
[1644359644902,67.2165,112.67,112.57,13.3201]
[1644359646204,67.2165,112.67,112.57,13.5701]
[1644359647705,80.3251,112.67,112.57,13.5701]
[1644359649407,80.3251,112.67,112.57,13.3201]
[1644359650911,80.3251,112.67,112.57,13.5701]
[1644359651110,80.3251,112.67,112.57,13.3201]
[1644359651512,80.3251,112.67,112.56,13.3238]
[1644359652513,80.3251,112.67,112.56,13.5738]
[1644359652914,80.3251,112.67,112.56,0.25]
[1644359653116,80.3251,112.67,112.55,23.2948]
[1644359653514,80.3251,112.67,112.55,0.25]
[1644359653715,82.43285549,112.67,112.54,126.0751]
[1644359655619,82.43285549,112.67,112.55,0.024]
[1644359658923,88.45,112.66,112.55,0.024]
[1644359659123,13.3303,112.63,112.53,0.024]
[1644359659321,94.45,112.66,112.51,0.024]
[1644359659322,46.9518,112.62,112.51,0.024]
[1644359659723,52.9518,112.62,112.51,0.024]
[1644359660725,66.2821,112.62,112.51,0.024]
[1644359662923,66.5321,112.62,112.51,0.024]
[1644359667130,53.2018,112.62,112.51,0.024]
[1644359667730,53.2018,112.62,112.5,25.25]
[1644359667930,53.2018,112.62,112.51,0.024]
[1644359668831,53.2018,112.62,112.51,13.353]
[1644359669130,53.2018,112.62,112.51,36.247]
[1644359669330,53.2018,112.62,112.51,36.497]
[1644359670230,53.2018,112.62,112.51,37.88247818]
[1644359673435,53.2018,112.62,112.51,37.63247818]
[1644359674335,66.5308,112.62,112.51,32.13247818]
[1644359674736,66.5308,112.62,112.51,9.23847818]
[1644359675740,66.5308,112.62,112.51,9.48847818]
[1644359675943,66.5308,112.62,112.51,33.11257818]
[1644359676641,66.2808,112.62,112.51,33.11257818]
[1644359676843,52.9518,112.62,112.51,33.11257818]
[1644359678745,66.2802,112.62,112.51,33.11257818]
[1644359679144,66.2802,112.62,112.51,32.61257818]
[1644359679543,66.2802,112.62,112.51,32.36257818]
[1644359680344,66.5302,112.62,112.51,32.36257818]
[1644359680746,66.5302,112.62,112.51,32.61257818]
[1644359681346,66.5302,112.62,112.51,33.87467993]
[1644359681547,66.5302,112.62,112.51,32.61257818]
[1644359682146,66.5302,112.62,112.51,33.87467993]
[1644359682349,66.5302,112.62,112.51,32.61257818]
[1644359682647,67.7867216,112.62,112.51,32.61257818]
[1644359683069,66.5302,112.62,112.51,32.61257818]
[1644359683468,67.7867216,112.62,112.51,1.38547818]
[1644359683671,13.3339,112.58,112.5,26.26210175]
[1644359683873,13.3339,112.58,112.5,25.0]
[1644359684075,19.3339,112.58,112.5,25.0]
[1644359684270,20.5904216,112.58,112.5,24.0]
[1644359684473,27.59347709,112.57,112.5,24.0]
[1644359684674,30.2292,112.57,112.5,24.0]
[1644359685774,43.5631,112.57,112.5,24.0]
[1644359689072,43.8131,112.57,112.5,24.0]
[1644359690772,43.5631,112.57,112.5,24.0]
[1644359691574,43.5631,112.57,112.5,24.024]
[1644359692275,43.8131,112.57,112.5,24.024]
[1644359692476,43.8131,112.57,112.46,58.8296]
[1644359692877,43.8131,112.57,112.46,59.0796]
[1644359693375,43.8131,112.57,112.48,13.3338]
[1644359694282,43.8131,112.57,112.46,14.6389]
[1644359695177,43.8131,112.57,112.46,16.02437818]
[1644359695577,43.8131,112.57,112.46,29.11047818]
[1644359696477,43.8131,112.57,112.46,27.725]
[1644359697276,45.92085549,112.57,112.45,13.3375]
[1644359698476,45.92085549,112.57,112.46,22.6621]
[1644359699678,43.8131,112.57,112.46,22.6621]
[1644359699881,43.8131,112.57,112.46,35.9983]
[1644359700078,43.5631,112.57,112.46,35.9983]
[1644359700478,43.5631,112.57,112.46,36.2483]
[1644359702680,43.5631,112.57,112.46,35.9983]
[1644359703783,43.8131,112.57,112.46,35.9983]
[1644359703984,43.8131,112.57,112.46,36.2483]
[1644359704985,43.8131,112.57,112.46,35.9983]
[1644359705784,43.5631,112.57,112.46,35.9983]
[1644359706184,43.5631,112.57,112.46,36.2483]
[1644359706483,43.5631,112.57,112.46,35.9983]
[1644359707387,44.8196216,112.57,112.46,35.9983]
[1644359707585,4.61878089,112.56,112.46,35.9983]
[1644359707787,13.3365,112.54,112.47,0.024]
[1644359707989,23.9425,112.53,112.46,35.9983]
[1644359708187,6.0,112.53,112.46,36.0223]
[1644359708592,6.0,112.53,112.46,36.2723]
[1644359708790,24.6414,112.54,112.46,36.2723]
[1644359709010,30.6414,112.54,112.46,36.0223]
[1644359709791,13.3358,112.53,112.46,36.2723]
[1644359710091,19.3358,112.53,112.46,36.2723]
[1644359710290,19.5858,112.53,112.46,36.2723]
[1644359710491,19.5858,112.53,112.46,36.0223]
[1644359710692,19.5858,112.53,112.46,36.2723]
[1644359711090,13.5858,112.53,112.46,36.2723]
[1644359711793,19.5858,112.53,112.46,36.2723]
[1644359712897,19.5858,112.53,112.46,36.0223]
[1644359713297,19.5858,112.53,112.46,37.28440175]
[1644359713499,13.3331,112.54,112.46,38.66987993]
[1644359713701,4.61878089,112.56,112.47,1.26210175]
[1644359713898,4.61878089,112.56,112.49,13.3318]
[1644359714099,4.61878089,112.56,112.49,24.5258]
[1644359714300,10.61878089,112.56,112.49,24.7998]
[1644359714500,23.95028089,112.56,112.49,24.7998]
[1644359714705,10.61878089,112.56,112.49,24.7998]
[1644359714904,4.61878089,112.56,112.49,26.18527818]
[1644359715101,1.2565216,112.58,112.49,26.18527818]
[1644359715301,7.2565216,112.58,112.52,13.3282]
[1644359715503,1.2565216,112.59,112.52,25.4352]
[1644359715702,6.0,112.58,112.52,11.881]
[1644359717532,7.2565216,112.61,112.54,1.38547818]
[1644359717729,6.0,112.61,112.54,1.63547818]
[1644359717926,1.2565216,112.63,112.54,7.63547818]
[1644359718129,7.2565216,112.63,112.56,13.3226]
[1644359718330,1.2565216,112.63,112.56,25.5856]
[1644359718528,6.0,112.63,112.56,26.97107818]
[1644359719130,6.0,112.64,112.56,26.97107818]
[1644359719629,6.0,112.65,112.56,26.97107818]
[1644359720034,7.2565216,112.67,112.56,115.42107818]
[1644359720231,7.2565216,112.67,112.56,121.42107818]
[1644359720433,6.0,112.67,112.56,121.42107818]
[1644359720633,1.2565216,112.68,112.56,32.97107818]
[1644359720836,1.2565216,112.68,112.57,23.1429]
[1644359721033,1.2565216,112.67,112.57,23.1429]
[1644359721234,1.2565216,112.68,112.6,13.3175]
[1644359721439,1.2565216,112.68,112.6,25.9965]
[1644359721840,1.5065216,112.68,112.6,27.63197818]
[1644359722136,1.2565216,112.68,112.6,33.63197818]
[1644359722434,1.2565216,112.69,112.6,33.63197818]
[1644359722834,1.2565216,112.7,112.6,33.63197818]
[1644359723535,6.0,112.7,112.6,33.63197818]
[1644359724136,44.4243216,112.71,112.6,33.63197818]
[1644359724335,7.2565216,112.71,112.6,33.63197818]
[1644359724534,1.2565216,112.72,112.6,33.63197818]
[1644359724734,43.8257216,112.73,112.64,13.3116]
[1644359724934,6.0,112.72,112.64,25.8756]
[1644359725236,6.0,112.72,112.65,1.38425541]
[1644359725636,6.0,112.74,112.65,1.63425541]
[1644359725838,20.5673216,112.75,112.65,7.63425541]
[1644359726135,20.5673216,112.75,112.65,7.38425541]
[1644359726536,19.3108,112.75,112.65,7.38425541]
[1644359726737,19.3108,112.75,112.66,13.3099]
[1644359726938,6.0,112.75,112.66,13.3099]
[1644359727235,32.0320216,112.76,112.66,13.5599]
[1644359728238,44.0849,112.76,112.66,13.5599]
[1644359728838,44.3349,112.76,112.66,13.5599]
[1644359729038,45.5914216,112.76,112.66,13.5599]
[1644359729237,44.3349,112.76,112.66,13.5599]
[1644359730539,44.3349,112.76,112.66,13.0599]
[1644359731641,44.0849,112.76,112.66,13.0599]
[1644359731842,30.7755,112.76,112.66,13.0599]
[1644359733442,30.7755,112.76,112.66,14.44903417]
[1644359735354,31.0255,112.76,112.66,14.44903417]
[1644359738545,44.3347,112.76,112.66,19.0599]
[1644359739044,44.3347,112.76,112.66,13.0599]
[1644359740848,57.5872,112.76,112.66,13.0599]
[1644359741046,57.5872,112.76,112.66,19.0599]
[1644359743249,31.0255,112.76,112.67,88.45]